[Event "Early-Titled-Tuesday-Blitz-October-03-2023"]
[Site "Chess.com"]
[Date "2023.10.03"]
[Round "4"]
[White "Journey_to_GrandMaster_YT"]
[Black "Man-Chuk"]
[Result "1-0"]
[WhiteElo "2567"]
[BlackElo "2761"]
[TimeControl "180+1"]
[EndTime "8:40:06 PDT"]
[Termination "Journey_to_GrandMaster_YT won by resignation"]

1. d4 {[%clk 0:02:59.7]} 1... Nf6 {[%clk 0:02:59.4]} 2. Nf3 {[%clk 0:03:00]}
2... e6 {[%clk 0:02:55.4]} 3. c4 {[%clk 0:03:00]} 3... d5 {[%clk 0:02:54.9]} 4.
Nc3 {[%clk 0:03:00]} 4... Bb4 {[%clk 0:02:54.6]} 5. Bg5 {[%clk 0:02:52.6]} 5...
h6 {[%clk 0:02:53]} 6. Bxf6 {[%clk 0:02:52.7]} 6... Qxf6 {[%clk 0:02:53.9]} 7.
e3 {[%clk 0:02:50.9]} 7... O-O {[%clk 0:02:53.4]} 8. Rc1 {[%clk 0:02:50.6]} 8...
Nc6 {[%clk 0:02:51.2]} 9. a3 {[%clk 0:02:38.5]} 9... Bxc3+ {[%clk 0:02:50.2]}
10. Rxc3 {[%clk 0:02:38.3]} 10... Rd8 {[%clk 0:02:39.6]} 11. Bd3 {[%clk
0:02:33.6]} 11... dxc4 {[%clk 0:02:37.8]} 12. Rxc4 {[%clk 0:02:33]} 12... Bd7
{[%clk 0:02:09.7]} 13. O-O {[%clk 0:02:28.1]} 13... Rac8 {[%clk 0:02:07.1]} 14.
Qc2 {[%clk 0:02:24.6]} 14... e5 {[%clk 0:01:48.4]} 15. dxe5 {[%clk 0:01:53.2]}
15... Nxe5 {[%clk 0:01:48.3]} 16. Rf4 {[%clk 0:01:53.4]} 16... Nxf3+ {[%clk
0:01:45.4]} 17. Rxf3 {[%clk 0:01:52.5]} 17... Qe5 {[%clk 0:01:44.1]} 18. Bh7+
{[%clk 0:01:35.2]} 18... Kf8 {[%clk 0:01:44.1]} 19. Bd3 {[%clk 0:01:17.8]} 19...
Be6 {[%clk 0:01:36.7]} 20. h3 {[%clk 0:01:10.7]} 20... c5 {[%clk 0:01:36.1]} 21.
Bc4 {[%clk 0:01:10.2]} 21... Rd6 {[%clk 0:01:21.8]} 22. Bxe6 {[%clk 0:01:03.8]}
22... Qxe6 {[%clk 0:01:21.6]} 23. Qh7 {[%clk 0:01:03.5]} 23... g5 {[%clk
0:00:58.6]} 24. Rc1 {[%clk 0:00:43.8]} 24... Ke7 {[%clk 0:00:57]} 25. Qg7 {[%clk
0:00:42]} 25... c4 {[%clk 0:00:48.5]} 26. Qc3 {[%clk 0:00:27.3]} 26... b5 {[%clk
0:00:41]} 27. a4 {[%clk 0:00:25.6]} 27... a6 {[%clk 0:00:38.9]} 28. axb5 {[%clk
0:00:25.4]} 28... axb5 {[%clk 0:00:39.8]} 29. Ra1 {[%clk 0:00:25.6]} 29... Rc7
{[%clk 0:00:32.6]} 30. Ra8 {[%clk 0:00:25.3]} 30... Rd1+ {[%clk 0:00:29.5]} 31.
Kh2 {[%clk 0:00:25.2]} 31... Qd6+ {[%clk 0:00:29.4]} 32. g3 {[%clk 0:00:25.3]}
32... f6 {[%clk 0:00:11.7]} 33. Rh8 {[%clk 0:00:21.3]} 33... Qc6 {[%clk
0:00:08.1]} 34. Rh7+ {[%clk 0:00:19.9]} 34... Ke8 {[%clk 0:00:07.1]} 35. Rh8+
{[%clk 0:00:13]} 35... Ke7 {[%clk 0:00:04.6]} 36. Rh7+ {[%clk 0:00:11]} 36...
Ke8 {[%clk 0:00:04.2]} 37. Rh8+ {[%clk 0:00:05.1]} 37... Kf7 {[%clk 0:00:04.8]}
38. Rxf6+ {[%clk 0:00:01.2]} 38... Qxf6 {[%clk 0:00:05.7]} 39. Rh7+ {[%clk
0:00:01.6]} 39... Kf8 {[%clk 0:00:06.6]} 40. Qxf6+ {[%clk 0:00:02.1]} 40... Ke8
{[%clk 0:00:02.7]} 41. Rh8+ {[%clk 0:00:03]} 1-0

[Event "Early-Titled-Tuesday-Blitz-October-03-2023"]
[Site "Chess.com"]
[Date "2023.10.03"]
[Round "4"]
[White "borocotoajua"]
[Black "FM_Kappeler"]
[Result "1-0"]
[WhiteElo "2615"]
[BlackElo "2324"]
[TimeControl "180+1"]
[EndTime "8:40:06 PDT"]
[Termination "borocotoajua won on time"]

1. d4 {[%clk 0:03:00.9]} 1... Nf6 {[%clk 0:02:59]} 2. Nf3 {[%clk 0:03:01.2]}
2... e6 {[%clk 0:02:59]} 3. c4 {[%clk 0:03:01.4]} 3... d5 {[%clk 0:02:57.7]} 4.
g3 {[%clk 0:02:58.4]} 4... dxc4 {[%clk 0:02:56.1]} 5. Bg2 {[%clk 0:02:58.5]}
5... c5 {[%clk 0:02:56.2]} 6. O-O {[%clk 0:02:56.5]} 6... Nc6 {[%clk 0:02:56.1]}
7. Na3 {[%clk 0:02:55.6]} 7... cxd4 {[%clk 0:02:52.8]} 8. Nxc4 {[%clk
0:02:55.8]} 8... Bc5 {[%clk 0:02:52.9]} 9. Bf4 {[%clk 0:02:52.8]} 9... O-O
{[%clk 0:02:51.5]} 10. Rc1 {[%clk 0:02:52.5]} 10... Bb6 {[%clk 0:02:24.4]} 11.
Nfe5 {[%clk 0:02:17.5]} 11... Bd7 {[%clk 0:02:19.1]} 12. Nxb6 {[%clk 0:01:59.4]}
12... Qxb6 {[%clk 0:02:14.1]} 13. Nc4 {[%clk 0:01:54.3]} 13... Qa6 {[%clk
0:02:04.9]} 14. a3 {[%clk 0:01:47.8]} 14... Rfd8 {[%clk 0:02:03.7]} 15. Bc7
{[%clk 0:01:43.2]} 15... Rdc8 {[%clk 0:01:55.7]} 16. Bf4 {[%clk 0:01:43.2]}
16... Be8 {[%clk 0:01:43]} 17. Qb3 {[%clk 0:01:31.4]} 17... Rd8 {[%clk
0:01:25.5]} 18. Bc7 {[%clk 0:01:26.9]} 18... Rd7 {[%clk 0:01:20.4]} 19. Bf4
{[%clk 0:01:21.2]} 19... Rdd8 {[%clk 0:01:20.1]} 20. Bg5 {[%clk 0:01:16.1]}
20... Rac8 {[%clk 0:01:16.3]} 21. Rfd1 {[%clk 0:01:13.4]} 21... b5 {[%clk
0:00:45.7]} 22. Nd2 {[%clk 0:01:10.3]} 22... Na5 {[%clk 0:00:38.9]} 23. Qf3
{[%clk 0:00:55.6]} 23... e5 {[%clk 0:00:35.3]} 24. Ne4 {[%clk 0:00:46.2]} 24...
Rxc1 {[%clk 0:00:15.5]} 25. Rxc1 {[%clk 0:00:47.1]} 25... Rc8 {[%clk 0:00:15.5]}
26. Nxf6+ {[%clk 0:00:30.5]} 26... gxf6 {[%clk 0:00:15.1]} 27. Rxc8 {[%clk
0:00:30.9]} 27... Qxc8 {[%clk 0:00:14.6]} 28. Bxf6 {[%clk 0:00:25.4]} 28... Qe6
{[%clk 0:00:11.8]} 29. Bh4 {[%clk 0:00:10.4]} 29... Bc6 {[%clk 0:00:11.7]} 30.
Qh5 {[%clk 0:00:06.2]} 30... Bxg2 {[%clk 0:00:11.1]} 31. Qg5+ {[%clk 0:00:06.6]}
31... Kf8 {[%clk 0:00:10]} 32. Kxg2 {[%clk 0:00:04.5]} 32... Nc6 {[%clk
0:00:05.5]} 33. Qc1 {[%clk 0:00:03.5]} 33... Qd5+ {[%clk 0:00:04.8]} 34. f3
{[%clk 0:00:03.3]} 34... e4 {[%clk 0:00:04.9]} 35. Qh6+ {[%clk 0:00:03.8]} 35...
Ke8 {[%clk 0:00:04.4]} 36. Qxh7 {[%clk 0:00:03.5]} 36... d3 {[%clk 0:00:04.6]}
37. fxe4 {[%clk 0:00:02.6]} 37... Qe6 {[%clk 0:00:01.5]} 38. Qh8+ {[%clk
0:00:02.6]} 38... Kd7 {[%clk 0:00:01.2]} 39. exd3 {[%clk 0:00:03.2]} 39... Ne5
{[%clk 0:00:01.3]} 40. Qh5 {[%clk 0:00:02.7]} 40... Ng6 {[%clk 0:00:01.9]} 41.
Qxb5+ {[%clk 0:00:02.6]} 1-0

[Event "Early-Titled-Tuesday-Blitz-October-03-2023"]
[Site "Chess.com"]
[Date "2023.10.03"]
[Round "4"]
[White "pankajfm"]
[Black "Rozhkov_V"]
[Result "0-1"]
[WhiteElo "2108"]
[BlackElo "2429"]
[TimeControl "180+1"]
[EndTime "8:40:06 PDT"]
[Termination "Rozhkov_V won on time"]

1. e4 {[%clk 0:03:00.9]} 1... e6 {[%clk 0:02:59.8]} 2. d4 {[%clk 0:02:59.5]}
2... d5 {[%clk 0:03:00.2]} 3. e5 {[%clk 0:03:00.2]} 3... c5 {[%clk 0:02:59.5]}
4. c3 {[%clk 0:03:00.9]} 4... Nc6 {[%clk 0:03:00]} 5. Nf3 {[%clk 0:03:01]} 5...
Qb6 {[%clk 0:02:59.8]} 6. a3 {[%clk 0:03:01.7]} 6... c4 {[%clk 0:03:00.1]} 7.
Nbd2 {[%clk 0:03:00.3]} 7... Na5 {[%clk 0:03:00.4]} 8. Be2 {[%clk 0:02:55.9]}
8... Bd7 {[%clk 0:02:59.2]} 9. O-O {[%clk 0:02:53.2]} 9... Ne7 {[%clk
0:02:58.1]} 10. Rb1 {[%clk 0:02:52.9]} 10... h6 {[%clk 0:02:32.7]} 11. Re1
{[%clk 0:02:25.3]} 11... O-O-O {[%clk 0:02:25]} 12. Nf1 {[%clk 0:01:59.9]} 12...
Kb8 {[%clk 0:02:24.6]} 13. h4 {[%clk 0:01:39.1]} 13... f6 {[%clk 0:02:18.9]} 14.
exf6 {[%clk 0:01:27.5]} 14... gxf6 {[%clk 0:02:19.8]} 15. Bf4+ {[%clk
0:01:28.1]} 15... Ka8 {[%clk 0:02:19.6]} 16. N3d2 {[%clk 0:01:29]} 16... Ng6
{[%clk 0:02:13.7]} 17. Bg3 {[%clk 0:01:28.1]} 17... Bd6 {[%clk 0:02:12.4]} 18.
Bg4 {[%clk 0:00:55.2]} 18... Bxg3 {[%clk 0:02:03.2]} 19. fxg3 {[%clk 0:00:56.1]}
19... e5 {[%clk 0:01:54.4]} 20. Bxd7 {[%clk 0:00:55.6]} 20... Rxd7 {[%clk
0:01:55.3]} 21. Qg4 {[%clk 0:00:50.2]} 21... Rg7 {[%clk 0:01:43.5]} 22. h5
{[%clk 0:00:47.4]} 22... f5 {[%clk 0:01:36.5]} 23. Qxf5 {[%clk 0:00:46.9]} 23...
Rf8 {[%clk 0:01:36.9]} 24. Qg4 {[%clk 0:00:40.4]} 24... exd4 {[%clk 0:01:28.4]}
25. cxd4 {[%clk 0:00:36.8]} 25... Nc6 {[%clk 0:01:14.1]} 26. hxg6 {[%clk
0:00:30.6]} 26... Nxd4 {[%clk 0:01:14.1]} 27. Kh1 {[%clk 0:00:25.8]} 27... Rxg6
{[%clk 0:01:12.7]} 28. Qd7 {[%clk 0:00:19.4]} 28... a6 {[%clk 0:01:06.5]} 29.
Re8+ {[%clk 0:00:18.2]} 29... Rxe8 {[%clk 0:01:07.2]} 30. Qxe8+ {[%clk
0:00:19.1]} 30... Ka7 {[%clk 0:01:07.9]} 31. Qe3 {[%clk 0:00:12.2]} 31... Re6
{[%clk 0:00:58.3]} 32. Qf2 {[%clk 0:00:09.8]} 32... Rf6 {[%clk 0:00:58]} 33. Nf3
{[%clk 0:00:10]} 33... Nxf3 {[%clk 0:00:53.7]} 34. Qxb6+ {[%clk 0:00:10.9]}
34... Kxb6 {[%clk 0:00:53.7]} 35. gxf3 {[%clk 0:00:11.8]} 35... Rxf3 {[%clk
0:00:54.1]} 36. Kg2 {[%clk 0:00:12.7]} 36... Rb3 {[%clk 0:00:54.1]} 37. Nd2
{[%clk 0:00:12.2]} 37... Rd3 {[%clk 0:00:54.6]} 38. Nf3 {[%clk 0:00:10.5]} 38...
Kc5 {[%clk 0:00:53.7]} 39. Rc1 {[%clk 0:00:09.7]} 39... b5 {[%clk 0:00:48.3]}
40. Kf2 {[%clk 0:00:10.2]} 40... a5 {[%clk 0:00:46.1]} 41. Ke2 {[%clk
0:00:09.9]} 41... b4 {[%clk 0:00:40.2]} 42. axb4+ {[%clk 0:00:10.7]} 42... axb4
{[%clk 0:00:41.1]} 43. g4 {[%clk 0:00:10.9]} 43... Rb3 {[%clk 0:00:36.8]} 44.
Rc2 {[%clk 0:00:09.8]} 44... d4 {[%clk 0:00:35.5]} 45. Rxc4+ {[%clk 0:00:04.3]}
45... Kb5 {[%clk 0:00:18.9]} 0-1

[Event "Early-Titled-Tuesday-Blitz-October-03-2023"]
[Site "Chess.com"]
[Date "2023.10.03"]
[Round "4"]
[White "LoaySameer"]
[Black "Dmitry_Konenkin"]
[Result "1-0"]
[WhiteElo "2604"]
[BlackElo "2379"]
[TimeControl "180+1"]
[EndTime "8:40:08 PDT"]
[Termination "LoaySameer won on time"]

1. Nf3 {[%clk 0:03:00.9]} 1... d6 {[%clk 0:02:56.9]} 2. g3 {[%clk 0:03:01.1]}
2... e5 {[%clk 0:02:57.1]} 3. Bg2 {[%clk 0:03:01.4]} 3... Nc6 {[%clk 0:02:57.2]}
4. O-O {[%clk 0:03:02]} 4... Be6 {[%clk 0:02:56.8]} 5. d3 {[%clk 0:03:01.8]}
5... Qd7 {[%clk 0:02:56.7]} 6. c4 {[%clk 0:03:01.5]} 6... Bh3 {[%clk 0:02:56]}
7. Nc3 {[%clk 0:03:01.3]} 7... h5 {[%clk 0:02:55.3]} 8. e4 {[%clk 0:02:59]} 8...
Nf6 {[%clk 0:02:48.4]} 9. Nd5 {[%clk 0:02:58.9]} 9... Be7 {[%clk 0:02:46.4]} 10.
Bxh3 {[%clk 0:02:23.9]} 10... Qxh3 {[%clk 0:02:40.1]} 11. Ng5 {[%clk 0:02:23.6]}
11... Qd7 {[%clk 0:02:35.9]} 12. h4 {[%clk 0:02:22.2]} 12... Nxd5 {[%clk
0:02:24.4]} 13. cxd5 {[%clk 0:02:18.9]} 13... Nd4 {[%clk 0:02:25.3]} 14. f4
{[%clk 0:01:54.8]} 14... f6 {[%clk 0:02:19.2]} 15. Ne6 {[%clk 0:01:35.4]} 15...
Nxe6 {[%clk 0:02:18.7]} 16. dxe6 {[%clk 0:01:36.3]} 16... Qxe6 {[%clk
0:02:19.4]} 17. f5 {[%clk 0:01:37.2]} 17... Qd7 {[%clk 0:02:13.7]} 18. Be3
{[%clk 0:01:36.9]} 18... d5 {[%clk 0:02:01]} 19. Qb3 {[%clk 0:01:34]} 19... d4
{[%clk 0:01:57.4]} 20. Bd2 {[%clk 0:01:33.6]} 20... b6 {[%clk 0:01:56.1]} 21. a4
{[%clk 0:01:33]} 21... a5 {[%clk 0:01:53]} 22. Rac1 {[%clk 0:01:32.8]} 22... Bd6
{[%clk 0:01:42.4]} 23. Qd5 {[%clk 0:01:16.4]} 23... Ke7 {[%clk 0:01:41.8]} 24.
Rc6 {[%clk 0:01:09.5]} 24... Rhg8 {[%clk 0:01:13.6]} 25. Kh2 {[%clk 0:00:57.3]}
25... Rac8 {[%clk 0:01:08.4]} 26. Rcc1 {[%clk 0:00:34.2]} 26... Bc5 {[%clk
0:00:52.1]} 27. Rxc5 {[%clk 0:00:26.7]} 27... bxc5 {[%clk 0:00:50.8]} 28. Qxc5+
{[%clk 0:00:27.6]} 28... Kf7 {[%clk 0:00:44.6]} 29. Qc4+ {[%clk 0:00:26.6]}
29... Kf8 {[%clk 0:00:40.5]} 30. Bxa5 {[%clk 0:00:26.4]} 30... c5 {[%clk
0:00:37.5]} 31. Bb6 {[%clk 0:00:17.2]} 31... Qc6 {[%clk 0:00:34.6]} 32. a5
{[%clk 0:00:17.8]} 32... g6 {[%clk 0:00:31.7]} 33. fxg6 {[%clk 0:00:14.3]} 33...
Rxg6 {[%clk 0:00:32.6]} 34. Rf5 {[%clk 0:00:14.9]} 34... Kg7 {[%clk 0:00:30.5]}
35. Rxh5 {[%clk 0:00:13.2]} 35... Qe8 {[%clk 0:00:10]} 36. Rf5 {[%clk
0:00:11.4]} 36... Rg4 {[%clk 0:00:08.8]} 37. Kh3 {[%clk 0:00:10.7]} 37... Qg6
{[%clk 0:00:08.9]} 38. Rf3 {[%clk 0:00:09.6]} 38... Kh7 {[%clk 0:00:08.2]} 39.
Qe6 {[%clk 0:00:09.7]} 39... Rg8 {[%clk 0:00:08.2]} 40. Qd7+ {[%clk 0:00:09.4]}
40... Rg7 {[%clk 0:00:08.1]} 41. Qf5 {[%clk 0:00:10.3]} 41... Rxg3+ {[%clk
0:00:08.4]} 42. Rxg3 {[%clk 0:00:10]} 42... Qxf5+ {[%clk 0:00:06.6]} 43. exf5
{[%clk 0:00:09.1]} 43... Rb7 {[%clk 0:00:06.1]} 44. Rg1 {[%clk 0:00:08.5]} 44...
Kh6 {[%clk 0:00:06.2]} 45. Kg3 {[%clk 0:00:08.8]} 45... Rg7+ {[%clk 0:00:03.6]}
46. Kf2 {[%clk 0:00:09]} 1-0

[Event "Early-Titled-Tuesday-Blitz-October-03-2023"]
[Site "Chess.com"]
[Date "2023.10.03"]
[Round "4"]
[White "hypert"]
[Black "Ranindu2003"]
[Result "1-0"]
[WhiteElo "2570"]
[BlackElo "2728"]
[TimeControl "180+1"]
[EndTime "8:40:09 PDT"]
[Termination "hypert won on time"]

1. d4 {[%clk 0:02:59.5]} 1... d5 {[%clk 0:02:59.8]} 2. c4 {[%clk 0:02:58.8]}
2... e6 {[%clk 0:03:00.5]} 3. Nf3 {[%clk 0:02:58.5]} 3... Nf6 {[%clk 0:03:00.9]}
4. Nc3 {[%clk 0:02:58.6]} 4... Bb4 {[%clk 0:03:01.5]} 5. Bg5 {[%clk 0:02:57.9]}
5... Nbd7 {[%clk 0:03:00.1]} 6. cxd5 {[%clk 0:02:56.6]} 6... exd5 {[%clk
0:02:59.9]} 7. e3 {[%clk 0:02:54.8]} 7... h6 {[%clk 0:03:00.1]} 8. Bh4 {[%clk
0:02:52.6]} 8... g5 {[%clk 0:03:00.2]} 9. Bg3 {[%clk 0:02:52.4]} 9... Ne4 {[%clk
0:03:00.8]} 10. Nd2 {[%clk 0:02:46]} 10... Nxg3 {[%clk 0:02:59.3]} 11. hxg3
{[%clk 0:02:44.3]} 11... Nb6 {[%clk 0:02:59.9]} 12. Bd3 {[%clk 0:02:40.3]} 12...
Be6 {[%clk 0:02:53.9]} 13. Qc2 {[%clk 0:02:36.2]} 13... c6 {[%clk 0:02:52.3]}
14. a3 {[%clk 0:02:28.2]} 14... Bf8 {[%clk 0:02:51.8]} 15. b4 {[%clk 0:02:26.9]}
15... Qf6 {[%clk 0:02:48.1]} 16. Nb3 {[%clk 0:02:17.5]} 16... Nc4 {[%clk
0:02:15.2]} 17. Nc5 {[%clk 0:02:05.8]} 17... Bc8 {[%clk 0:02:09.1]} 18. Bxc4
{[%clk 0:01:41.5]} 18... dxc4 {[%clk 0:02:10]} 19. N5e4 {[%clk 0:01:40.3]} 19...
Qg6 {[%clk 0:02:09.2]} 20. f3 {[%clk 0:01:20.1]} 20... b5 {[%clk 0:01:51.6]} 21.
O-O-O {[%clk 0:00:56.8]} 21... a5 {[%clk 0:01:49.6]} 22. d5 {[%clk 0:00:55.1]}
22... axb4 {[%clk 0:01:44.8]} 23. axb4 {[%clk 0:00:53.1]} 23... Bxb4 {[%clk
0:01:39.2]} 24. dxc6 {[%clk 0:00:51.7]} 24... Bf5 {[%clk 0:01:33.4]} 25. g4
{[%clk 0:00:48]} 25... Bc8 {[%clk 0:01:11.1]} 26. Nd5 {[%clk 0:00:29.5]} 26...
Ba3+ {[%clk 0:01:09.7]} 27. Kb1 {[%clk 0:00:28.5]} 27... Qxc6 {[%clk 0:01:02.6]}
28. Qc3 {[%clk 0:00:27.1]} 28... f6 {[%clk 0:00:35.5]} 29. Nexf6+ {[%clk
0:00:19.2]} 29... Kf7 {[%clk 0:00:35.6]} 30. Ne4 {[%clk 0:00:12.9]} 30... Bd7
{[%clk 0:00:18.4]} 31. Qe5 {[%clk 0:00:10.6]} 31... Rhe8 {[%clk 0:00:12]} 32.
Qd4 {[%clk 0:00:05.9]} 32... b4 {[%clk 0:00:05]} 33. Nxg5+ {[%clk 0:00:04.1]}
33... Kg8 {[%clk 0:00:02.5]} 34. Ne4 {[%clk 0:00:02.5]} 34... Rf8 {[%clk
0:00:01.8]} 35. Ndf6+ {[%clk 0:00:03.4]} 35... Rxf6 {[%clk 0:00:01.8]} 36. Nxf6+
{[%clk 0:00:02.7]} 36... Kf7 {[%clk 0:00:02.4]} 37. Rxh6 {[%clk 0:00:02.4]}
37... c3 {[%clk 0:00:02.1]} 38. Rh7+ {[%clk 0:00:03.3]} 38... Kg6 {[%clk
0:00:01.4]} 39. Qxd7 {[%clk 0:00:03.6]} 1-0

[Event "Early-Titled-Tuesday-Blitz-October-03-2023"]
[Site "Chess.com"]
[Date "2023.10.03"]
[Round "4"]
[White "Tsyhanchuk_Stanislav"]
[Black "familijatop71"]
[Result "1-0"]
[WhiteElo "2435"]
[BlackElo "2205"]
[TimeControl "180+1"]
[EndTime "8:40:10 PDT"]
[Termination "Tsyhanchuk_Stanislav won on time"]

1. e4 {[%clk 0:02:58.1]} 1... d5 {[%clk 0:03:00.6]} 2. exd5 {[%clk 0:02:56.5]}
2... Qxd5 {[%clk 0:03:01.5]} 3. Nc3 {[%clk 0:02:57.1]} 3... Qa5 {[%clk
0:03:02.2]} 4. d4 {[%clk 0:02:53.1]} 4... c6 {[%clk 0:03:02.6]} 5. Nf3 {[%clk
0:02:53.2]} 5... Nf6 {[%clk 0:03:01.7]} 6. Bc4 {[%clk 0:02:52.2]} 6... Bf5
{[%clk 0:03:02]} 7. Bf4 {[%clk 0:02:50.9]} 7... e6 {[%clk 0:02:56.9]} 8. Qd2
{[%clk 0:02:50.9]} 8... Bb4 {[%clk 0:02:56]} 9. Bd3 {[%clk 0:02:29.8]} 9... Ne4
{[%clk 0:02:34.2]} 10. Bxe4 {[%clk 0:02:29.2]} 10... Bxe4 {[%clk 0:02:34.4]} 11.
Ne5 {[%clk 0:02:20.6]} 11... Nd7 {[%clk 0:02:02.1]} 12. O-O {[%clk 0:02:12.6]}
12... Nxe5 {[%clk 0:01:54.3]} 13. Bxe5 {[%clk 0:02:13.5]} 13... O-O {[%clk
0:01:49.1]} 14. a3 {[%clk 0:01:42.4]} 14... Bxc3 {[%clk 0:01:48.7]} 15. bxc3
{[%clk 0:01:42.8]} 15... Qd5 {[%clk 0:01:31.7]} 16. f3 {[%clk 0:01:32.2]} 16...
Bg6 {[%clk 0:01:31.5]} 17. Qe2 {[%clk 0:01:24.9]} 17... b5 {[%clk 0:01:11.8]}
18. g4 {[%clk 0:01:16.7]} 18... Rae8 {[%clk 0:00:44.5]} 19. h4 {[%clk
0:01:05.5]} 19... f6 {[%clk 0:00:30.1]} 20. Bg3 {[%clk 0:00:57.2]} 20... e5
{[%clk 0:00:20.3]} 21. Qd2 {[%clk 0:00:41.7]} 21... e4 {[%clk 0:00:16.1]} 22. f4
{[%clk 0:00:34.1]} 22... e3 {[%clk 0:00:15.5]} 23. Qe2 {[%clk 0:00:34.5]} 23...
f5 {[%clk 0:00:08.3]} 24. g5 {[%clk 0:00:31.3]} 24... Qe4 {[%clk 0:00:07.5]} 25.
h5 {[%clk 0:00:29.4]} 25... Bf7 {[%clk 0:00:07.8]} 26. Rfe1 {[%clk 0:00:25.4]}
26... Bd5 {[%clk 0:00:07.8]} 27. Qh2 {[%clk 0:00:22.3]} 27... Qf3 {[%clk
0:00:04]} 28. Rf1 {[%clk 0:00:21]} 28... Qe4 {[%clk 0:00:03.5]} 29. Rae1 {[%clk
0:00:20.7]} 29... e2 {[%clk 0:00:03.8]} 30. Rf2 {[%clk 0:00:20.7]} 30... Qxc2
{[%clk 0:00:03.8]} 31. Rfxe2 {[%clk 0:00:21]} 31... Rxe2 {[%clk 0:00:03.6]} 32.
Qxe2 {[%clk 0:00:19]} 32... Qxc3 {[%clk 0:00:02.4]} 33. Kh2 {[%clk 0:00:10.9]}
33... Qxa3 {[%clk 0:00:02.1]} 34. h6 {[%clk 0:00:10.2]} 34... Qf3 {[%clk
0:00:01.1]} 35. Qxf3 {[%clk 0:00:09]} 35... Bxf3 {[%clk 0:00:01]} 36. Re7 {[%clk
0:00:09.6]} 36... gxh6 {[%clk 0:00:01.2]} 37. gxh6 {[%clk 0:00:09.8]} 37... Rf7
{[%clk 0:00:01.8]} 38. Re8+ {[%clk 0:00:07.6]} 38... Rf8 {[%clk 0:00:02.1]} 39.
Re7 {[%clk 0:00:08.5]} 39... Rf7 {[%clk 0:00:01.6]} 40. Re8+ {[%clk 0:00:09]}
40... Rf8 {[%clk 0:00:02.2]} 41. Re6 {[%clk 0:00:09]} 41... Bd5 {[%clk 0:00:02]}
42. Rd6 {[%clk 0:00:08.5]} 42... a5 {[%clk 0:00:01.5]} 43. Be1 {[%clk
0:00:07.5]} 43... Kf7 {[%clk 0:00:01.9]} 44. Bxa5 {[%clk 0:00:07.4]} 44... Re8
{[%clk 0:00:01.3]} 45. Bb4 {[%clk 0:00:07.1]} 1-0

[Event "Early-Titled-Tuesday-Blitz-October-03-2023"]
[Site "Chess.com"]
[Date "2023.10.03"]
[Round "4"]
[White "soumeow"]
[Black "Kielinkei"]
[Result "1-0"]
[WhiteElo "2300"]
[BlackElo "2455"]
[TimeControl "180+1"]
[EndTime "8:40:14 PDT"]
[Termination "soumeow won on time"]

1. e4 {[%clk 0:03:00.9]} 1... c5 {[%clk 0:03:00.4]} 2. Nf3 {[%clk 0:03:00.9]}
2... e6 {[%clk 0:03:00.9]} 3. d4 {[%clk 0:02:59.2]} 3... cxd4 {[%clk 0:03:01.8]}
4. Nxd4 {[%clk 0:02:59.7]} 4... Nc6 {[%clk 0:03:00.4]} 5. Nc3 {[%clk 0:02:59.3]}
5... Qc7 {[%clk 0:03:00.5]} 6. Be3 {[%clk 0:02:48.8]} 6... a6 {[%clk 0:03:00.5]}
7. Be2 {[%clk 0:02:46.6]} 7... Nf6 {[%clk 0:02:58]} 8. O-O {[%clk 0:02:45.5]}
8... Be7 {[%clk 0:02:56.8]} 9. Kh1 {[%clk 0:02:33.8]} 9... O-O {[%clk
0:02:56.5]} 10. f4 {[%clk 0:02:33.8]} 10... d6 {[%clk 0:02:56.9]} 11. Bf3 {[%clk
0:02:32.5]} 11... Nxd4 {[%clk 0:02:53]} 12. Bxd4 {[%clk 0:02:10.4]} 12... e5
{[%clk 0:02:53.2]} 13. fxe5 {[%clk 0:02:09.9]} 13... dxe5 {[%clk 0:02:53]} 14.
Be3 {[%clk 0:02:09.9]} 14... Be6 {[%clk 0:02:30.1]} 15. Qe1 {[%clk 0:01:53.8]}
15... Rad8 {[%clk 0:02:18.4]} 16. Qg3 {[%clk 0:01:52.3]} 16... Kh8 {[%clk
0:02:08.3]} 17. Qf2 {[%clk 0:01:03.5]} 17... Rd7 {[%clk 0:01:57.8]} 18. h3
{[%clk 0:01:01.9]} 18... b5 {[%clk 0:01:35.6]} 19. Rfd1 {[%clk 0:00:37.4]} 19...
Rxd1+ {[%clk 0:01:28.6]} 20. Rxd1 {[%clk 0:00:37.6]} 20... Rd8 {[%clk
0:01:28.9]} 21. Nd5 {[%clk 0:00:32.3]} 21... Bxd5 {[%clk 0:01:23.4]} 22. exd5
{[%clk 0:00:33.2]} 22... Rd7 {[%clk 0:01:07.2]} 23. Bb6 {[%clk 0:00:19.5]} 23...
Qb8 {[%clk 0:01:03.6]} 24. Bc5 {[%clk 0:00:16.4]} 24... e4 {[%clk 0:00:56.3]}
25. Bxe7 {[%clk 0:00:14.7]} 25... Rxe7 {[%clk 0:00:55.6]} 26. Be2 {[%clk
0:00:13.7]} 26... e3 {[%clk 0:00:46.4]} 27. Qf5 {[%clk 0:00:13.1]} 27... Ne4
{[%clk 0:00:44.7]} 28. Kg1 {[%clk 0:00:07.4]} 28... Ng3 {[%clk 0:00:34.4]} 29.
Qf3 {[%clk 0:00:07.5]} 29... Qd6 {[%clk 0:00:19.8]} 30. Rd3 {[%clk 0:00:07.1]}
30... Nxe2+ {[%clk 0:00:15.1]} 31. Qxe2 {[%clk 0:00:06.9]} 31... g6 {[%clk
0:00:04.5]} 32. Rxe3 {[%clk 0:00:06.5]} 32... Rxe3 {[%clk 0:00:03.5]} 33. Qxe3
{[%clk 0:00:06.3]} 33... Qxd5 {[%clk 0:00:04.2]} 34. Qc3+ {[%clk 0:00:05.8]}
34... Kg8 {[%clk 0:00:03.7]} 35. a3 {[%clk 0:00:06]} 35... Qd7 {[%clk
0:00:02.6]} 36. Qc5 {[%clk 0:00:05.6]} 36... h5 {[%clk 0:00:02.9]} 37. Kh2
{[%clk 0:00:04.7]} 37... Qb7 {[%clk 0:00:02.1]} 38. Qe5 {[%clk 0:00:04]} 38...
Qd7 {[%clk 0:00:02]} 39. Qb8+ {[%clk 0:00:02.9]} 39... Kg7 {[%clk 0:00:02]} 40.
Qe5+ {[%clk 0:00:03.6]} 40... Kg8 {[%clk 0:00:02.1]} 41. Qb8+ {[%clk 0:00:03.6]}
41... Kg7 {[%clk 0:00:02.5]} 42. Qe5+ {[%clk 0:00:04.1]} 42... f6 {[%clk
0:00:02.6]} 43. Qb8 {[%clk 0:00:04.1]} 1-0